[Event "*** Titled Tuesday 3|2 Blitz"]
[Site "Chess.com"]
[Date "2016.08.02"]
[Round "5"]
[White "simonachess"]
[Black "GremioPrudente"]
[Result "1-0"]
[WhiteElo "2137"]
[BlackElo "2075"]
[TimeControl "180+2"]
[EndTime "12:06:53 PDT"]
[Termination "simonachess won on time"]

1. d4 {[%clk 0:03:01.9]} 1... d5 {[%clk 0:02:59.4]} 2. c4 {[%clk 0:03:02.7]}
2... c6 {[%clk 0:02:59.9]} 3. Nc3 {[%clk 0:03:03.6]} 3... e6 {[%clk 0:02:59.5]}
4. e4 {[%clk 0:03:03.3]} 4... dxe4 {[%clk 0:02:56.4]} 5. Nxe4 {[%clk 0:03:03.8]}
5... Bb4+ {[%clk 0:02:52.4]} 6. Bd2 {[%clk 0:03:03.6]} 6... Bxd2+ {[%clk
0:02:51.7]} 7. Qxd2 {[%clk 0:03:04]} 7... Nf6 {[%clk 0:02:52.4]} 8. Nxf6+ {[%clk
0:03:05]} 8... Qxf6 {[%clk 0:02:52.8]} 9. Nf3 {[%clk 0:03:06.5]} 9... O-O {[%clk
0:02:47.4]} 10. Bd3 {[%clk 0:03:06.7]} 10... Nd7 {[%clk 0:02:39.1]} 11. Qe3
{[%clk 0:02:57.7]} 11... Re8 {[%clk 0:02:29.1]} 12. O-O {[%clk 0:02:57.8]} 12...
h6 {[%clk 0:02:13.2]} 13. Rfe1 {[%clk 0:02:56.5]} 13... b6 {[%clk 0:01:57.3]}
14. Ne5 {[%clk 0:02:57.3]} 14... Nxe5 {[%clk 0:01:51.9]} 15. dxe5 {[%clk
0:02:59.2]} 15... Qe7 {[%clk 0:01:48.4]} 16. Qe4 {[%clk 0:02:57.6]} 16... g6
{[%clk 0:01:45.8]} 17. Qxc6 {[%clk 0:02:37.5]} 17... Bb7 {[%clk 0:01:44.1]} 18.
Qa4 {[%clk 0:02:38.3]} 18... Red8 {[%clk 0:01:22.8]} 19. Rad1 {[%clk 0:02:27.4]}
19... Rd4 {[%clk 0:01:02.3]} 20. Bf1 {[%clk 0:02:25.5]} 20... Qd8 {[%clk
0:00:40.1]} 21. Qc2 {[%clk 0:02:14.3]} 21... Rc8 {[%clk 0:00:34.7]} 22. b3
{[%clk 0:02:13.3]} 22... b5 {[%clk 0:00:18.2]} 23. Qc1 {[%clk 0:01:33.1]} 23...
bxc4 {[%clk 0:00:16.9]} 24. Bxc4 {[%clk 0:01:28.3]} 24... Rxd1 {[%clk
0:00:13.5]} 25. Qxd1 {[%clk 0:01:24.6]} 25... Qg5 {[%clk 0:00:12.3]} 26. Bf1
{[%clk 0:00:59.9]} 26... Bd5 {[%clk 0:00:08.8]} 27. Qe2 {[%clk 0:00:50.1]} 27...
Kg7 {[%clk 0:00:09.3]} 28. h3 {[%clk 0:00:48.5]} 28... h5 {[%clk 0:00:09.5]} 29.
Qe3 {[%clk 0:00:44.3]} 29... Qf5 {[%clk 0:00:08.4]} 30. Qxa7 {[%clk 0:00:37.6]}
30... Rc2 {[%clk 0:00:08.7]} 31. a4 {[%clk 0:00:26.1]} 31... Ra2 {[%clk
0:00:08.9]} 32. b4 {[%clk 0:00:23]} 32... Qg5 {[%clk 0:00:07.6]} 33. a5 {[%clk
0:00:21.2]} 33... Rd2 {[%clk 0:00:05.1]} 34. Qe3 {[%clk 0:00:20.5]} 34... Qxe3
{[%clk 0:00:03.6]} 35. fxe3 {[%clk 0:00:18.6]} 35... Rb2 {[%clk 0:00:04.1]} 36.
b5 {[%clk 0:00:18.9]} 36... Ra2 {[%clk 0:00:02.5]} 37. a6 {[%clk 0:00:19.6]} 1-0

[Event "*** Titled Tuesday 3|2 Blitz"]
[Site "Chess.com"]
[Date "2016.08.02"]
[Round "5"]
[White "joppie2"]
[Black "MMSANCHEZ"]
[Result "1-0"]
[WhiteElo "2497"]
[BlackElo "2291"]
[TimeControl "180+2"]
[EndTime "12:07:05 PDT"]
[Termination "joppie2 won by resignation"]

1. e4 {[%clk 0:03:01.9]} 1... e6 {[%clk 0:03:01]} 2. d4 {[%clk 0:03:03]} 2... d5
{[%clk 0:03:02.6]} 3. Nc3 {[%clk 0:03:04.9]} 3... Nc6 {[%clk 0:03:02.6]} 4. Nf3
{[%clk 0:03:04.1]} 4... Nf6 {[%clk 0:03:03.3]} 5. Bd3 {[%clk 0:03:05.6]} 5...
Bb4 {[%clk 0:03:03.3]} 6. O-O {[%clk 0:03:07.3]} 6... Bxc3 {[%clk 0:03:02.3]} 7.
exd5 {[%clk 0:03:08.9]} 7... Nxd5 {[%clk 0:02:59.3]} 8. bxc3 {[%clk 0:03:09.3]}
8... O-O {[%clk 0:02:59.7]} 9. c4 {[%clk 0:03:04.9]} 9... Nf6 {[%clk 0:02:58.5]}
10. Bb2 {[%clk 0:03:05.6]} 10... b6 {[%clk 0:02:52.7]} 11. Qe2 {[%clk
0:03:05.4]} 11... Bb7 {[%clk 0:02:50.8]} 12. Rad1 {[%clk 0:03:06.9]} 12... Qe7
{[%clk 0:02:50.6]} 13. Rfe1 {[%clk 0:03:03.4]} 13... Rfe8 {[%clk 0:02:48.3]} 14.
Ne5 {[%clk 0:02:59.6]} 14... Nb4 {[%clk 0:02:33.4]} 15. Qe3 {[%clk 0:02:24.5]}
15... Nxd3 {[%clk 0:02:17.1]} 16. Rxd3 {[%clk 0:02:23.6]} 16... Rad8 {[%clk
0:02:13.5]} 17. Qg3 {[%clk 0:02:14.3]} 17... Qb4 {[%clk 0:02:11.4]} 18. Bc3
{[%clk 0:02:13.5]} 18... Qa4 {[%clk 0:02:09.9]} 19. Rde3 {[%clk 0:01:43.7]}
19... Qxc2 {[%clk 0:02:02.4]} 20. d5 {[%clk 0:01:42.8]} 20... Qf5 {[%clk
0:01:06.3]} 21. Rf3 {[%clk 0:01:11.7]} 21... Ne4 {[%clk 0:00:55.4]} 22. Qh4
{[%clk 0:01:11.8]} 22... Qxf3 {[%clk 0:00:54.6]} 23. gxf3 {[%clk 0:00:46.8]}
23... Nxc3 {[%clk 0:00:55.1]} 24. Re3 {[%clk 0:00:45]} 24... Na4 {[%clk
0:00:38]} 25. Qh5 {[%clk 0:00:25.6]} 25... Re7 {[%clk 0:00:25.5]} 26. dxe6
{[%clk 0:00:17.5]} 26... fxe6 {[%clk 0:00:26.4]} 27. Qg5 {[%clk 0:00:17.4]}
27... Rde8 {[%clk 0:00:27.1]} 28. Ng4 {[%clk 0:00:18.2]} 28... Kh8 {[%clk
0:00:27.5]} 29. h4 {[%clk 0:00:19.1]} 29... Nc5 {[%clk 0:00:28.6]} 30. h5 {[%clk
0:00:20.7]} 30... Rd7 {[%clk 0:00:18.8]} 31. Kh2 {[%clk 0:00:20.6]} 31... Rf8
{[%clk 0:00:15.9]} 32. Ne5 {[%clk 0:00:20.7]} 32... Rd6 {[%clk 0:00:07.4]} 33.
h6 {[%clk 0:00:16.2]} 33... gxh6 {[%clk 0:00:07.9]} 34. Qxh6 {[%clk 0:00:18.1]}
34... Rdd8 {[%clk 0:00:08.6]} 35. Ng6+ {[%clk 0:00:17.2]} 35... Kg8 {[%clk
0:00:09.4]} 36. Nxf8 {[%clk 0:00:19.1]} 36... Rxf8 {[%clk 0:00:10.1]} 37. f4
{[%clk 0:00:20.7]} 37... Ne4 {[%clk 0:00:09.2]} 38. Rxe4 {[%clk 0:00:22.2]}
38... Bxe4 {[%clk 0:00:09.6]} 39. Qxe6+ {[%clk 0:00:23.9]} 39... Kg7 {[%clk
0:00:11.5]} 40. Qe5+ {[%clk 0:00:24.9]} 40... Rf6 {[%clk 0:00:11.8]} 41. Qxe4
{[%clk 0:00:26.8]} 41... Kf7 {[%clk 0:00:12.9]} 42. Qxh7+ {[%clk 0:00:27.7]}
42... Ke6 {[%clk 0:00:14]} 43. Qxc7 {[%clk 0:00:29.6]} 43... Rh6+ {[%clk
0:00:14.6]} 44. Kg3 {[%clk 0:00:30.7]} 44... Rg6+ {[%clk 0:00:16.5]} 45. Kf3
{[%clk 0:00:32.4]} 45... Rf6 {[%clk 0:00:17.9]} 46. Ke4 {[%clk 0:00:33.7]} 46...
Rh6 {[%clk 0:00:17.3]} 47. Qc6+ {[%clk 0:00:34.1]} 1-0

[Event "*** Titled Tuesday 3|2 Blitz"]
[Site "Chess.com"]
[Date "2016.08.02"]
[Round "5"]
[White "Alliswell998"]
[Black "RamonManon0g"]
[Result "0-1"]
[WhiteElo "2198"]
[BlackElo "2235"]
[TimeControl "180+2"]
[EndTime "12:07:06 PDT"]
[Termination "RamonManon0g won by checkmate"]

1. e4 {[%clk 0:03:01.9]} 1... c5 {[%clk 0:03:00.8]} 2. Nc3 {[%clk 0:03:01.3]}
2... Nc6 {[%clk 0:03:00.5]} 3. f4 {[%clk 0:03:02.2]} 3... g6 {[%clk 0:03:01.7]}
4. Nf3 {[%clk 0:03:03.2]} 4... Bg7 {[%clk 0:03:03.2]} 5. Bb5 {[%clk 0:03:04.2]}
5... Nd4 {[%clk 0:03:04.5]} 6. O-O {[%clk 0:03:05]} 6... e6 {[%clk 0:03:00.7]}
7. e5 {[%clk 0:03:04.2]} 7... Ne7 {[%clk 0:02:57.9]} 8. Nxd4 {[%clk 0:02:58]}
8... cxd4 {[%clk 0:02:58.7]} 9. Ne4 {[%clk 0:02:58.7]} 9... O-O {[%clk
0:02:59.1]} 10. Kh1 {[%clk 0:02:54.6]} 10... d5 {[%clk 0:02:55.6]} 11. Nd6
{[%clk 0:02:51.4]} 11... Nf5 {[%clk 0:02:38.5]} 12. Nxf5 {[%clk 0:02:47.6]}
12... gxf5 {[%clk 0:02:40.4]} 13. Qh5 {[%clk 0:02:43.1]} 13... f6 {[%clk
0:02:40.7]} 14. exf6 {[%clk 0:02:31.1]} 14... Qxf6 {[%clk 0:02:41.5]} 15. b3
{[%clk 0:02:17.6]} 15... a6 {[%clk 0:02:34.9]} 16. Bd3 {[%clk 0:02:16.5]} 16...
Bd7 {[%clk 0:02:33.2]} 17. Ba3 {[%clk 0:02:14.4]} 17... Rf7 {[%clk 0:02:30.6]}
18. Bd6 {[%clk 0:02:11.4]} 18... Qg6 {[%clk 0:02:29.6]} 19. Qxg6 {[%clk
0:02:04.9]} 19... hxg6 {[%clk 0:02:31.5]} 20. Rae1 {[%clk 0:02:03.1]} 20... Bf8
{[%clk 0:02:28.2]} 21. Be5 {[%clk 0:02:02.1]} 21... Bg7 {[%clk 0:02:29.6]} 22.
g3 {[%clk 0:01:59.6]} 22... Rc8 {[%clk 0:02:28.4]} 23. Kg2 {[%clk 0:01:54]}
23... Bxe5 {[%clk 0:02:29.6]} 24. Rxe5 {[%clk 0:01:54.3]} 24... Kg7 {[%clk
0:02:31]} 25. h3 {[%clk 0:01:43.2]} 25... Rh8 {[%clk 0:02:23.5]} 26. Rh1 {[%clk
0:01:38.7]} 26... Kf6 {[%clk 0:02:21.4]} 27. a4 {[%clk 0:01:12.4]} 27... g5
{[%clk 0:02:17.9]} 28. Re2 {[%clk 0:01:08.1]} 28... gxf4 {[%clk 0:02:18.8]} 29.
gxf4 {[%clk 0:01:08.1]} 29... Rg7+ {[%clk 0:02:20]} 30. Kh2 {[%clk 0:01:06.3]}
30... Rh4 {[%clk 0:02:16.5]} 31. Rf2 {[%clk 0:01:03]} 31... Rgg4 {[%clk
0:02:15.5]} 32. Rhf1 {[%clk 0:01:01.4]} 32... Rg7 {[%clk 0:02:07.8]} 33. Rf3
{[%clk 0:01:01.7]} 33... Be8 {[%clk 0:02:06.2]} 34. Rg3 {[%clk 0:01:02.1]} 34...
Rgh7 {[%clk 0:01:58.3]} 35. Rfg1 {[%clk 0:01:00.1]} 35... Rxf4 {[%clk
0:01:57.6]} 36. Rg8 {[%clk 0:00:59.3]} 36... Bf7 {[%clk 0:01:57.8]} 37. Rb8
{[%clk 0:00:58.9]} 37... Bh5 {[%clk 0:01:45.7]} 38. Rf8+ {[%clk 0:00:50.7]}
38... Ke7 {[%clk 0:01:43.7]} 39. Rb8 {[%clk 0:00:50.9]} 39... Kd6 {[%clk
0:01:44]} 40. Rgg8 {[%clk 0:00:50.9]} 40... Bg4 {[%clk 0:01:43.4]} 41. Kg3
{[%clk 0:00:45.1]} 41... Rf3+ {[%clk 0:01:40.6]} 42. Kg2 {[%clk 0:00:46.6]}
42... Rhxh3 {[%clk 0:01:41.2]} 43. Rxb7 {[%clk 0:00:43.3]} 43... Rhg3+ {[%clk
0:01:18.7]} 44. Kh2 {[%clk 0:00:44]} 44... f4 {[%clk 0:01:20.1]} 45. Rb6+ {[%clk
0:00:38]} 45... Ke5 {[%clk 0:01:19.1]} 46. Rg5+ {[%clk 0:00:37.1]} 46... Bf5
{[%clk 0:00:50.6]} 47. Rxg3 {[%clk 0:00:33.3]} 47... Rxg3 {[%clk 0:00:47.5]} 48.
Bxf5 {[%clk 0:00:19]} 48... exf5 {[%clk 0:00:48.9]} 49. Rxa6 {[%clk 0:00:20.2]}
49... Rg7 {[%clk 0:00:46.2]} 50. Ra8 {[%clk 0:00:16.4]} 50... f3 {[%clk
0:00:47.2]} 51. Re8+ {[%clk 0:00:17.6]} 51... Kf4 {[%clk 0:00:48.3]} 52. Re1
{[%clk 0:00:18.6]} 52... f2 {[%clk 0:00:48.3]} 53. Rf1 {[%clk 0:00:17.7]} 53...
Kf3 {[%clk 0:00:50.2]} 54. a5 {[%clk 0:00:15.7]} 54... Rh7# {[%clk 0:00:50.9]}
0-1

[Event "*** Titled Tuesday 3|2 Blitz"]
[Site "Chess.com"]
[Date "2016.08.02"]
[Round "5"]
[White "TyIerDurden"]
[Black "psv98"]
[Result "1-0"]
[WhiteElo "2491"]
[BlackElo "2592"]
[TimeControl "180+2"]
[EndTime "12:07:08 PDT"]
[Termination "TyIerDurden won by checkmate"]

1. Nf3 {[%clk 0:03:01.9]} 1... Nf6 {[%clk 0:02:59.5]} 2. g3 {[%clk 0:03:03.8]}
2... g6 {[%clk 0:03:00.6]} 3. Bg2 {[%clk 0:03:05.7]} 3... Bg7 {[%clk 0:03:02.5]}
4. O-O {[%clk 0:03:06.2]} 4... O-O {[%clk 0:03:04.1]} 5. c4 {[%clk 0:03:06.4]}
5... d6 {[%clk 0:03:05.3]} 6. Nc3 {[%clk 0:03:06.5]} 6... Nc6 {[%clk 0:03:06.5]}
7. d4 {[%clk 0:03:07.3]} 7... Bf5 {[%clk 0:03:07]} 8. Re1 {[%clk 0:02:58.9]}
8... Ne4 {[%clk 0:03:07.5]} 9. e3 {[%clk 0:02:59.8]} 9... Nxc3 {[%clk
0:03:08.3]} 10. bxc3 {[%clk 0:03:00.3]} 10... Be4 {[%clk 0:03:10]} 11. Nd2
{[%clk 0:02:53.5]} 11... Bxg2 {[%clk 0:03:10.4]} 12. Kxg2 {[%clk 0:02:55.4]}
12... e5 {[%clk 0:03:09.7]} 13. Rb1 {[%clk 0:02:53.3]} 13... b6 {[%clk
0:03:09.9]} 14. Bb2 {[%clk 0:02:51.4]} 14... Na5 {[%clk 0:03:10.2]} 15. Qa4
{[%clk 0:02:50.5]} 15... Qe8 {[%clk 0:02:56.8]} 16. Qxe8 {[%clk 0:02:47.5]}
16... Rfxe8 {[%clk 0:02:58.7]} 17. h4 {[%clk 0:02:49.4]} 17... c5 {[%clk
0:02:58.8]} 18. h5 {[%clk 0:02:45.3]} 18... Rac8 {[%clk 0:02:58.8]} 19. d5
{[%clk 0:02:43.6]} 19... e4 {[%clk 0:02:58]} 20. Rh1 {[%clk 0:02:37.2]} 20... f5
{[%clk 0:02:57.1]} 21. g4 {[%clk 0:02:37.8]} 21... fxg4 {[%clk 0:02:54.2]} 22.
hxg6 {[%clk 0:02:36.9]} 22... hxg6 {[%clk 0:02:54.8]} 23. Rh4 {[%clk 0:02:38.8]}
23... Re5 {[%clk 0:01:43.7]} 24. Rbh1 {[%clk 0:02:27.1]} 24... Rce8 {[%clk
0:01:32.5]} 25. Rxg4 {[%clk 0:02:17.6]} 25... g5 {[%clk 0:01:33.5]} 26. Rh5
{[%clk 0:02:14.8]} 26... Bf6 {[%clk 0:01:34.3]} 27. Kg3 {[%clk 0:02:11.9]} 27...
Kg7 {[%clk 0:01:35.1]} 28. Rh3 {[%clk 0:02:12.6]} 28... Kg6 {[%clk 0:01:35.2]}
29. Kg2 {[%clk 0:02:11.5]} 29... R5e7 {[%clk 0:01:32.1]} 30. Kf1 {[%clk
0:02:10.5]} 30... Kf5 {[%clk 0:01:29.9]} 31. Rg2 {[%clk 0:02:09.7]} 31... Kg6
{[%clk 0:01:22.4]} 32. Rg4 {[%clk 0:02:07.5]} 32... Kf5 {[%clk 0:01:14.1]} 33.
Rg2 {[%clk 0:02:07.2]} 33... Be5 {[%clk 0:01:08.6]} 34. Rh5 {[%clk 0:02:01.5]}
34... Rg8 {[%clk 0:00:48]} 35. Ke2 {[%clk 0:01:51]} 35... Bf6 {[%clk 0:00:44.8]}
36. Rg3 {[%clk 0:01:47.2]} 36... Ree8 {[%clk 0:00:42.4]} 37. Rh7 {[%clk
0:01:42.6]} 37... Re7 {[%clk 0:00:39.8]} 38. Rh5 {[%clk 0:01:42.4]} 38... Kg6
{[%clk 0:00:26.7]} 39. Rhh3 {[%clk 0:01:36.2]} 39... Ree8 {[%clk 0:00:23.8]} 40.
Rh1 {[%clk 0:01:31.9]} 40... Rh8 {[%clk 0:00:19.7]} 41. Rhg1 {[%clk 0:01:26.8]}
41... Kf5 {[%clk 0:00:19.4]} 42. R3g2 {[%clk 0:01:26.1]} 42... Rh3 {[%clk
0:00:19.8]} 43. Rg4 {[%clk 0:01:12.7]} 43... Rh4 {[%clk 0:00:20.6]} 44. R4g2
{[%clk 0:01:11.8]} 44... Reh8 {[%clk 0:00:21.5]} 45. f3 {[%clk 0:01:10.1]} 45...
exf3+ {[%clk 0:00:21.3]} 46. Nxf3 {[%clk 0:01:11.4]} 46... R4h5 {[%clk
0:00:21.1]} 47. Kd3 {[%clk 0:01:08.2]} 47... Rh3 {[%clk 0:00:20.5]} 48. Nxg5
{[%clk 0:00:56.7]} 48... Rh2 {[%clk 0:00:21]} 49. e4+ {[%clk 0:00:54.3]} 49...
Kf4 {[%clk 0:00:19.2]} 50. Rg4+ {[%clk 0:00:51.2]} 50... Ke5 {[%clk 0:00:17.4]}
51. Nf3# {[%clk 0:00:53.1]} 1-0

[Event "*** Titled Tuesday 3|2 Blitz"]
[Site "Chess.com"]
[Date "2016.08.02"]
[Round "5"]
[White "maheswaran26"]
[Black "Haridaskesavan"]
[Result "1-0"]
[WhiteElo "2038"]
[BlackElo "2105"]
[TimeControl "180+2"]
[EndTime "12:07:16 PDT"]
[Termination "maheswaran26 won by resignation"]

1. d4 {[%clk 0:02:55.4]} 1... Nf6 {[%clk 0:03:00.2]} 2. Nf3 {[%clk 0:02:55.2]}
2... g6 {[%clk 0:03:01]} 3. c4 {[%clk 0:02:54]} 3... Bg7 {[%clk 0:03:02.2]} 4.
Nc3 {[%clk 0:02:54.6]} 4... O-O {[%clk 0:03:03.2]} 5. e4 {[%clk 0:02:55.3]} 5...
d6 {[%clk 0:03:04.6]} 6. h3 {[%clk 0:02:56.4]} 6... Nc6 {[%clk 0:03:05.5]} 7.
Bg5 {[%clk 0:02:56.6]} 7... h6 {[%clk 0:03:05.6]} 8. Be3 {[%clk 0:02:57.6]} 8...
e5 {[%clk 0:03:05.1]} 9. d5 {[%clk 0:02:58.6]} 9... Ne7 {[%clk 0:03:03]} 10. g4
{[%clk 0:02:58.8]} 10... Ne8 {[%clk 0:02:53.5]} 11. Qd2 {[%clk 0:02:55.8]} 11...
Kh7 {[%clk 0:02:53.2]} 12. Bd3 {[%clk 0:02:54.6]} 12... a6 {[%clk 0:02:48.1]}
13. O-O-O {[%clk 0:02:50.7]} 13... Bd7 {[%clk 0:02:46.3]} 14. Kb1 {[%clk
0:02:49.4]} 14... Ng8 {[%clk 0:02:46.9]} 15. Rdg1 {[%clk 0:02:39.4]} 15... Rb8
{[%clk 0:02:46.2]} 16. h4 {[%clk 0:02:38.2]} 16... b5 {[%clk 0:02:42.4]} 17. c5
{[%clk 0:02:35.6]} 17... Qe7 {[%clk 0:02:23.6]} 18. c6 {[%clk 0:02:32.8]} 18...
Bc8 {[%clk 0:02:23.4]} 19. Ng5+ {[%clk 0:02:24.3]} 19... Kh8 {[%clk 0:02:22.7]}
20. h5 {[%clk 0:02:18.3]} 20... gxh5 {[%clk 0:02:14.7]} 21. Rxh5 {[%clk
0:02:15.2]} 21... Nef6 {[%clk 0:02:15.6]} 22. Rh4 {[%clk 0:02:14]} 22... Nh7
{[%clk 0:02:08]} 23. Rgh1 {[%clk 0:02:00.9]} 23... Nxg5 {[%clk 0:00:34.5]} 24.
Bxg5 {[%clk 0:01:59.7]} 24... f6 {[%clk 0:00:35.2]} 25. Bxh6 {[%clk 0:01:52.5]}
25... Nxh6 {[%clk 0:00:22.7]} 26. Rxh6+ {[%clk 0:01:52.5]} 26... Kg8 {[%clk
0:00:18.8]} 27. R6h4 {[%clk 0:01:49.9]} 27... Kf7 {[%clk 0:00:19.2]} 28. Nd1
{[%clk 0:01:45.9]} 28... Rg8 {[%clk 0:00:18.4]} 29. Ne3 {[%clk 0:01:45.4]} 29...
Kf8 {[%clk 0:00:17.2]} 30. Be2 {[%clk 0:01:39.8]} 30... Qf7 {[%clk 0:00:17.5]}
31. Nf5 {[%clk 0:01:39.1]} 31... Bxf5 {[%clk 0:00:15]} 32. gxf5 {[%clk
0:01:38.8]} 32... Ke7 {[%clk 0:00:15.9]} 33. Bh5 {[%clk 0:01:37]} 33... Qf8
{[%clk 0:00:15.6]} 34. Bg6 {[%clk 0:01:37.8]} 34... b4 {[%clk 0:00:13.6]} 35.
Rh7 {[%clk 0:01:34.4]} 35... a5 {[%clk 0:00:12.3]} 36. Qe2 {[%clk 0:01:33.3]}
36... Kd8 {[%clk 0:00:12]} 37. Qa6 {[%clk 0:01:30]} 37... Ke7 {[%clk 0:00:10.4]}
38. Qxa5 {[%clk 0:01:26.4]} 38... Qc8 {[%clk 0:00:10.9]} 39. Rxg7+ {[%clk
0:01:15]} 39... Rxg7 {[%clk 0:00:11.2]} 40. Rh8 {[%clk 0:01:14.7]} 40... Qxh8
{[%clk 0:00:08.9]} 41. Qxc7+ {[%clk 0:01:13.6]} 41... Kf8 {[%clk 0:00:08.2]} 42.
Qxb8+ {[%clk 0:01:13.4]} 1-0

[Event "*** Titled Tuesday 3|2 Blitz"]
[Site "Chess.com"]
[Date "2016.08.02"]
[Round "5"]
[White "AdrianaNikolova"]
[Black "ecwinslow"]
[Result "1/2-1/2"]
[WhiteElo "2253"]
[BlackElo "2008"]
[TimeControl "180+2"]
[EndTime "12:07:46 PDT"]
[Termination "Game drawn by agreement"]

1. e4 {[%clk 0:02:59.3]} 1... c5 {[%clk 0:02:47.8]} 2. Nf3 {[%clk 0:02:53.1]}
2... d6 {[%clk 0:02:44.7]} 3. d4 {[%clk 0:02:52.3]} 3... cxd4 {[%clk 0:02:42.9]}
4. Nxd4 {[%clk 0:02:54.2]} 4... Nf6 {[%clk 0:02:42.6]} 5. Nc3 {[%clk 0:02:55]}
5... g6 {[%clk 0:02:41.2]} 6. Be3 {[%clk 0:02:55.1]} 6... Bg7 {[%clk 0:02:40.8]}
7. f3 {[%clk 0:02:54.8]} 7... O-O {[%clk 0:02:40.8]} 8. Qd2 {[%clk 0:02:54.8]}
8... Nc6 {[%clk 0:02:41.5]} 9. Bc4 {[%clk 0:02:55.5]} 9... Bd7 {[%clk 0:02:42]}
10. O-O-O {[%clk 0:02:54.9]} 10... Rc8 {[%clk 0:02:38.7]} 11. Bb3 {[%clk
0:02:55.9]} 11... Ne5 {[%clk 0:02:38.4]} 12. g4 {[%clk 0:02:55.2]} 12... b5
{[%clk 0:02:36.2]} 13. h4 {[%clk 0:02:40.9]} 13... b4 {[%clk 0:02:28.1]} 14. Nd5
{[%clk 0:02:40.7]} 14... Nxd5 {[%clk 0:02:18]} 15. Bxd5 {[%clk 0:02:39.8]} 15...
e6 {[%clk 0:02:10.1]} 16. Bb3 {[%clk 0:02:32.8]} 16... a5 {[%clk 0:02:10]} 17.
h5 {[%clk 0:02:31.1]} 17... a4 {[%clk 0:01:53.3]} 18. hxg6 {[%clk 0:02:30.5]}
18... axb3 {[%clk 0:01:49.6]} 19. Qh2 {[%clk 0:02:18.1]} 19... fxg6 {[%clk
0:01:26.3]} 20. axb3 {[%clk 0:01:59.2]} 20... Qa5 {[%clk 0:00:47.5]} 21. Qxh7+
{[%clk 0:01:35.6]} 21... Kf7 {[%clk 0:00:45.4]} 22. Bh6 {[%clk 0:01:33.8]} 22...
Rg8 {[%clk 0:00:38.6]} 23. Bxg7 {[%clk 0:01:29.5]} 23... Rxg7 {[%clk 0:00:37.3]}
24. Qh2 {[%clk 0:01:31]} 24... Qa1+ {[%clk 0:00:34.6]} 25. Kd2 {[%clk
0:01:31.2]} 25... Qxb2 {[%clk 0:00:34.8]} 26. Qf4+ {[%clk 0:01:14.5]} 26... Kg8
{[%clk 0:00:28.1]} 27. Ke2 {[%clk 0:01:13.7]} 27... Rxc2+ {[%clk 0:00:15.2]} 28.
Nxc2 {[%clk 0:01:13.1]} 28... Qxc2+ {[%clk 0:00:15.3]} 29. Qd2 {[%clk
0:00:52.9]} 29... Bb5+ {[%clk 0:00:14.6]} 30. Kf2 {[%clk 0:00:51.7]} 30... Qc5+
{[%clk 0:00:08.6]} 31. Qd4 {[%clk 0:00:24.3]} 31... Nxg4+ {[%clk 0:00:06.5]} 32.
fxg4 {[%clk 0:00:21.4]} 32... Qg5 {[%clk 0:00:06.4]} 33. Kg3 {[%clk 0:00:06.7]}
33... e5 {[%clk 0:00:05.6]} 34. Qd5+ {[%clk 0:00:06.1]} 34... Kf8 {[%clk
0:00:05.1]} 35. Rh8+ {[%clk 0:00:04.5]} 35... Ke7 {[%clk 0:00:05.6]} 36. Qxb5
{[%clk 0:00:03.9]} 36... Qf4+ {[%clk 0:00:05.2]} 37. Kh3 {[%clk 0:00:03.8]}
37... Qf3+ {[%clk 0:00:05.5]} 38. Kh2 {[%clk 0:00:05.5]} 38... Qxd1 {[%clk
0:00:05.1]} 39. Qb7+ {[%clk 0:00:05.6]} 39... Kf6 {[%clk 0:00:05.8]} 40. g5+
{[%clk 0:00:06.4]} 40... Kxg5 {[%clk 0:00:05.6]} 41. Qxg7 {[%clk 0:00:07.1]}
41... Qe2+ {[%clk 0:00:06.1]} 42. Kg3 {[%clk 0:00:08.6]} 42... Qe3+ {[%clk
0:00:06.7]} 43. Kg2 {[%clk 0:00:10.1]} 43... Qe2+ {[%clk 0:00:07.9]} 44. Kg1
{[%clk 0:00:11.6]} 44... Qe3+ {[%clk 0:00:08.9]} 45. Kg2 {[%clk 0:00:13.5]}
45... Qe2+ {[%clk 0:00:09.5]} 46. Kh1 {[%clk 0:00:15]} 46... Qf1+ {[%clk
0:00:09.9]} 47. Kh2 {[%clk 0:00:16.6]} 47... Qf2+ {[%clk 0:00:10.7]} 48. Kh3
{[%clk 0:00:18.1]} 48... Qf3+ {[%clk 0:00:11.4]} 49. Kh2 {[%clk 0:00:18.5]}
49... Qf2+ {[%clk 0:00:11.9]} 50. Kh1 {[%clk 0:00:19.9]} 1/2-1/2